bitfinex-derivatives/quotes_ETHF0:USTF0_20250427
["timestamp","ask_amount","ask_price","bid_price","bid_amount"]
[1745732627083,15.39643907,1796.1,1796.0,3.06914]
[1745732627382,15.39643907,1796.1,1796.0,1.9558]
[1745732628178,17.32333907,1796.1,1796.0,1.9558]
[1745732628379,17.32330907,1796.1,1796.0,1.9558]
[1745732628881,14.28313907,1796.1,1796.0,3.06914]
[1745732629282,15.39589637,1796.1,1796.0,3.06914]
[1745732630183,15.39589637,1796.1,1796.0,1.9558]
[1745732630477,14.28262637,1796.1,1796.0,3.06914]
[1745732630984,0.44927515,1796.1,1796.0,3.06914]
[1745732631282,5.9905672,1796.1,1796.0,3.06914]
[1745732632381,5.9905672,1796.1,1796.0,11.27694]
[1745732632587,5.54129205,1796.1,1796.0,11.27694]
[1745732633188,5.54129205,1796.1,1796.0,14.99894]
[1745732634986,12.81345378,1796.4,1796.2,1.11318]
[1745732635188,8.01454378,1796.4,1796.3,3.849]
[1745732635387,6.90145378,1796.4,1796.3,5.8346]
[1745732635688,7.35106143,1796.4,1796.3,6.94775]
[1745732635893,7.35106143,1796.4,1796.3,5.8346]
[1745732637691,7.35106143,1796.4,1796.3,6.94775]
[1745732638890,12.89235348,1796.4,1796.3,6.94775]
[1745732641001,9.68455348,1796.4,1796.3,6.94775]
[1745732641196,9.68455348,1796.4,1796.3,10.66975]
[1745732642196,9.68455348,1796.4,1796.3,6.94775]
[1745732642592,9.68455348,1796.4,1796.3,5.8346]
[1745732642793,9.68455348,1796.4,1796.3,6.94775]
[1745732644505,9.68455348,1796.4,1796.3,5.8346]
[1745732645006,10.79764348,1796.4,1796.3,5.8346]
[1745732645705,9.68455348,1796.4,1796.3,5.8346]
[1745732645907,9.68455348,1796.4,1796.3,6.94775]
[1745732646499,4.14326143,1796.4,1796.3,6.94775]
[1745732652812,0.44960765,1796.4,1796.3,6.94775]
[1745732653005,0.44960765,1796.4,1796.3,11.94775]
[1745732654514,9.23494583,1796.5,1796.4,1.11309]
[1745732654715,9.23494583,1796.5,1796.4,10.07469]
[1745732655713,9.23494583,1796.5,1796.4,10.51359577]
[1745732655916,9.23494583,1796.5,1796.4,10.07469]
[1745732656916,3.69365378,1796.6,1796.5,1.11303]
[1745732657116,3.69365378,1796.6,1796.5,2.98943]
[1745732657816,4.14390217,1796.6,1796.5,2.98943]
[1745732658210,4.14390217,1796.6,1796.5,1.8764]
[1745732658516,4.14390217,1796.6,1796.4,3.828]
[1745732658710,6.23424839,1796.5,1796.4,3.828]
[1745732658910,6.23424839,1796.5,1796.4,5.7044]
[1745732659315,6.23424839,1796.5,1796.4,6.81749]
[1745732659516,6.23424839,1796.5,1796.4,5.7044]
[1745732660206,6.23424839,1796.5,1796.4,6.81749]
[1745732662219,6.23424839,1796.5,1796.4,5.7044]
[1745732662420,6.23424839,1796.5,1796.4,6.81749]
[1745732663018,6.23424839,1796.5,1796.4,2.98949]
[1745732664121,11.77554044,1796.5,1796.4,2.98949]
[1745732665125,11.77554044,1796.5,1796.4,1.8764]
[1745732665317,12.88857044,1796.5,1796.4,1.8764]
[1745732665622,12.88857044,1796.5,1796.4,2.98949]
[1745732665623,11.77554044,1796.5,1796.4,2.98949]
[1745732672829,11.77554044,1796.5,1796.4,1.8764]
[1745732673133,11.77554044,1796.5,1796.4,2.98949]
[1745732673330,11.77554044,1796.5,1796.4,1.8764]
[1745732673529,12.88857044,1796.5,1796.4,1.8764]
[1745732673727,1.11311,1796.4,1796.2,1.11318]
[1745732673930,2.0057,1796.4,1796.3,1.9706]
[1745732674332,2.45594839,1796.4,1796.3,3.08375]
[1745732676533,3.56903839,1796.4,1796.3,1.9706]
[1745732676733,2.45594839,1796.4,1796.3,3.08375]
[1745732678334,0.45024839,1796.4,1796.3,3.08375]
[1745732678937,7.83061614,1796.4,1796.3,3.08375]
[1745732679235,7.83061614,1796.4,1796.3,6.80575]
[1745732679423,7.83061614,1796.4,1796.3,10.01355]
[1745732679735,5.88571614,1796.4,1796.3,15.01355]
[1745732680135,5.88571614,1796.4,1796.3,11.29155]
[1745732680640,4.74207614,1796.4,1796.3,11.29155]
[1745732683432,9.22428529,1796.6,1796.5,1.11303]
[1745732683636,3.71152127,1796.7,1796.6,1.11296]
[1745732683837,3.71152127,1796.7,1796.6,7.13146]
[1745732697351,3.71152127,1796.8,1796.7,1.1129]
[1745732697538,3.71152127,1796.8,1796.7,3.093]
[1745732700046,5.5672819,1796.8,1796.7,3.093]
[1745732701345,6.6801219,1796.8,1796.7,1.9801]
[1745732701546,8.7114219,1796.8,1796.7,1.9801]
[1745732702246,7.5985819,1796.8,1796.7,1.9801]
[1745732703948,7.5985819,1796.8,1796.7,3.093]
[1745732704338,5.5672819,1796.8,1796.7,6.3008]
[1745732704645,5.5672819,1796.8,1796.7,13.3563]
[1745732708157,7.63340661,1797.2,1797.1,1.11265]
[1745732708654,7.63340661,1797.2,1797.0,1.1127]
[1745732708858,7.63340661,1797.2,1797.0,2.9949]
[1745732709249,8.74604661,1797.2,1797.0,1.8822]
[1745732709448,3.12325,1797.1,1797.0,1.8822]
[1745732709650,2.0106,1797.1,1797.0,2.99492]
[1745732710249,2.0106,1797.1,1797.0,1.8822]
[1745732710751,2.0106,1797.1,1797.0,2.99492]
[1745732711655,2.0106,1797.1,1797.0,1.8822]
[1745732711857,2.0106,1797.1,1797.0,2.99492]
[1745732712056,2.0106,1797.1,1797.0,1.8822]
[1745732712356,2.0106,1797.1,1797.0,2.99492]
[1745732713058,2.0106,1797.1,1797.0,1.8822]
[1745732713457,2.0106,1797.1,1797.0,2.99492]
[1745732714455,2.0106,1797.1,1797.0,1.8822]
[1745732714456,3.12325,1797.1,1797.0,1.8822]
[1745732714753,2.0106,1797.1,1796.8,5.6823]
[1745732714952,3.9875,1797.0,1796.8,6.79514]
[1745732715152,5.10023,1797.0,1796.8,6.79514]
[1745732715750,5.09948,1796.9,1796.8,5.6823]
[1745732715949,5.09948,1796.9,1796.8,3.824]
[1745732717154,1.11284,1796.8,1796.7,1.11288]
[1745732717447,3.08424,1796.8,1796.7,1.11288]
[1745732717651,1.9714,1796.8,1796.7,1.11288]
[1745732717954,2.0153,1796.9,1796.8,1.11284]
[1745732718147,5.72040661,1796.9,1796.8,1.11284]
[1745732718349,3.70510661,1796.9,1796.8,1.11284]
[1745732721364,4.81788661,1796.9,1796.7,1.11286]
[1745732721570,8.7035619,1796.9,1796.8,1.9253]
[1745732723671,8.7035619,1796.9,1796.7,1.11286]
[1745732723966,4.045,1796.8,1796.7,1.1129]
[1745732724563,4.045,1796.8,1796.6,1.9253]
[1745732724867,1.11296,1796.6,1796.5,3.82]
[1745732725058,1.11303,1796.5,1796.3,4.32091]
[1745732725259,1.11301,1796.6,1796.3,4.32091]
[1745732725460,1.11306,1796.5,1796.3,3.2078]
[1745732725763,1.8904,1796.4,1796.3,4.32095]
[1745732727770,1.8904,1796.4,1796.3,3.2078]
[1745732727971,3.00352,1796.4,1796.2,3.82]
[1745732728167,6.71144978,1796.4,1796.2,3.82]
[1745732728361,5.59832978,1796.4,1796.2,4.93316]
[1745732728768,5.59832978,1796.4,1796.2,3.82]
[1745732728962,6.71143978,1796.4,1796.2,3.82]
[1745732729163,6.71143978,1796.4,1796.2,4.93321]
[1745732729571,5.59832978,1796.4,1796.3,1.11315]
[1745732729968,5.59832978,1796.4,1796.3,5.12825]
[1745732730270,3.70792978,1796.4,1796.3,5.12825]
[1745732730463,3.70792978,1796.4,1796.3,8.33605]
[1745732730672,3.70792978,1796.4,1796.3,15.31055]
[1745732731962,9.26982445,1796.4,1796.3,15.31055]
[1745732735071,3.70792978,1796.8,1796.7,1.1129]
[1745732736072,3.70792978,1796.8,1796.5,7.0288]
[1745732736276,3.70792978,1796.8,1796.7,1.1129]
[1745732736865,3.70792978,1796.8,1796.7,4.8382]
[1745732738564,3.70792978,1796.8,1796.7,13.046]
[1745732738971,3.70792978,1796.8,1796.7,8.046]
[1745732741172,3.70792978,1796.8,1796.7,13.046]
[1745732741374,2.51918978,1796.8,1796.7,13.046]
[1745732741871,9.78e-06,1796.8,1796.7,13.046]
[1745732742073,5.56189467,1796.9,1796.7,13.046]
[1745732742074,0.32127318,1796.9,1796.8,1.11284]
[1745732742264,0.32127318,1796.9,1796.8,6.93924]
[1745732742465,3.70270003,1797.2,1797.1,1.11265]
[1745732742768,3.70270003,1797.2,1797.1,8.13745]
[1745732743774,3.70270003,1797.2,1797.1,9.97685]
[1745732745766,3.8037,1797.4,1797.3,1.11253]
[1745732746365,3.8037,1797.4,1797.3,3.07393]
[1745732747360,9.39270604,1797.6,1797.4,1.11247]
[1745732747563,11.29220604,1797.6,1797.5,3.07381]
[1745732747759,13.17400604,1797.6,1797.5,3.07381]
[1745732747971,11.29220604,1797.6,1797.5,3.07381]
[1745732748165,13.17400604,1797.6,1797.5,3.07381]
[1745732749272,7.40330604,1797.6,1797.5,3.07381]
[1745732749969,7.40330604,1797.8,1797.7,1.11228]
[1745732750170,7.40330604,1797.8,1797.6,3.9677]
[1745732750365,7.40330604,1797.8,1797.7,1.9631]
[1745732750567,9.40820604,1797.8,1797.6,1.1123]
[1745732750871,2.0049,1797.7,1797.6,1.1123]
[1745732751071,2.0049,1797.7,1797.6,3.0754]
[1745732751274,7.40330604,1797.8,1797.7,1.11228]
[1745732751475,7.40330604,1797.8,1797.7,4.95788]
[1745732751974,7.40330604,1797.8,1797.7,16.98168]
[1745732752977,7.40330604,1797.8,1797.7,11.98168]
[1745732754170,3.6613,1797.9,1797.8,1.11222]
[1745732754368,3.6613,1797.9,1797.8,1.9993]
[1745732756278,3.6613,1797.9,1797.8,3.11152]
[1745732756579,3.6613,1797.9,1797.8,1.9993]
[1745732757277,3.6613,1797.9,1797.7,3.2078]
[1745732757477,1.9064,1797.8,1797.5,5.6693]
[1745732757672,1.9064,1797.8,1797.6,1.11234]
[1745732757873,1.9239,1797.7,1797.6,1.11234]
[1745732758073,1.9239,1797.7,1797.6,2.95854]
[1745732758573,8.0362,1797.7,1797.4,3.2078]
[1745732758778,1.9695,1797.6,1797.4,3.2078]
[1745732759077,1.9037,1797.5,1797.3,2.95869]
[1745732759278,1.9695,1797.4,1797.3,2.95869]
[1745732759581,1.9239,1797.7,1797.3,1.8462]
[1745732759782,1.9239,1797.7,1797.5,1.11236]
[1745732760270,1.9695,1797.6,1797.5,1.11236]
[1745732761479,1.9695,1797.6,1797.5,3.00206]
[1745732761980,3.2078,1798.0,1797.5,8.9125]
[1745732762173,3.2078,1798.0,1797.7,1.11228]
[1745732762483,2.005,1797.9,1797.8,1.11222]
[1745732763084,2.005,1797.9,1797.7,1.11224]
[1745732763383,1.9415,1797.8,1797.7,1.11224]
[1745732764688,1.9415,1797.8,1797.7,3.11474]
[1745732765384,3.2078,1798.0,1797.8,1.11222]
[1745732765587,8.1497,1798.0,1797.8,2.0025]
[1745732765881,1.8883,1797.9,1797.8,2.0025]
[1745732766482,3.00046,1797.9,1797.8,2.0025]
[1745732766679,1.8883,1797.9,1797.6,1.9478]
[1745732766883,3.00046,1797.9,1797.7,2.95785]
[1745732767080,1.11222,1797.8,1797.7,1.8456]
[1745732767284,1.11233,1797.7,1797.2,7.0228]
[1745732767584,1.964,1797.6,1797.4,1.11243]
[1745732767782,1.964,1797.6,1797.4,2.95803]
[1745732768283,1.964,1797.6,1797.4,1.8456]
[1745732768478,3.07639,1797.6,1797.4,1.8456]
[1745732768786,1.11241,1797.5,1797.2,7.0228]
[1745732768977,3.07641,1797.5,1797.3,1.11251]
[1745732769172,1.8808,1797.4,1797.3,2.95811]
[1745732769372,4.95727,1797.4,1797.3,1.8456]
[1745732769575,3.8448,1797.4,1797.3,1.8456]
[1745732769784,4.95727,1797.4,1797.2,8.13536]
[1745732770085,3.7828,1797.3,1797.2,9.99366]
[1745732770480,3.7828,1797.3,1797.2,6.78586]
[1745732771185,1.8859,1797.3,1797.2,6.78586]
[1745732772486,1.8859,1797.3,1797.2,5.6733]
[1745732772783,1.8859,1797.3,1797.2,6.78589]
[1745732774584,3.7777,1797.4,1797.2,6.78589]
[1745732774781,3.7777,1797.4,1797.3,1.8514]
[1745732776686,1.8521,1797.5,1797.3,2.96393]
[1745732777089,1.8521,1797.5,1797.4,1.8444]
[1745732778082,2.96451,1797.5,1797.4,1.8444]
[1745732779282,3.2078,1797.6,1797.4,1.8444]
[1745732779586,1.8768,1797.5,1797.4,1.8444]
[1745732779781,1.8768,1797.5,1797.4,2.95687]
[1745732781887,1.9746,1797.6,1797.5,1.11241]
[1745732782083,1.9746,1797.6,1797.5,6.90901]
[1745732782283,3.8878,1797.7,1797.6,1.11234]
[1745732782485,6.74125,1797.8,1797.7,1.11228]
[1745732782790,3.7881,1797.8,1797.7,1.11228]
[1745732782983,10.40750604,1797.9,1797.7,1.11228]
[1745732783183,7.40330604,1797.9,1797.8,3.05642]
[1745732784292,8.51546604,1797.9,1797.8,1.9442]
[1745732784693,7.40330604,1797.9,1797.8,3.05642]
[1745732784883,8.51546604,1797.9,1797.8,3.05642]
[1745732785490,8.51546604,1797.9,1797.8,1.9442]
[1745732785691,9.40720604,1797.9,1797.8,3.05642]
[1745732786891,10.51936604,1797.9,1797.8,1.9442]
[1745732787094,7.40330604,1797.9,1797.8,3.05642]
[1745732787791,3.2078,1798.0,1797.9,1.11216]
[1745732788089,3.2078,1798.0,1797.9,2.98586]
[1745732790500,4.3199,1798.0,1797.9,2.98586]
[1745732791000,4.3199,1798.0,1797.9,1.8737]
[1745732791396,3.2078,1798.0,1797.9,2.98586]
[1745732791695,1.11222,1797.8,1797.7,3.2078]
[1745732791997,1.11222,1797.8,1797.7,5.1165]
[1745732792192,1.11222,1797.8,1797.7,6.22878]
[1745732792390,3.0615,1797.9,1797.8,1.11222]
[1745732792592,16.32121,1797.9,1797.0,7.42101254]
[1745732792796,4.32045,1797.1,1797.0,7.42101254]
[1745732794701,1.11278,1796.9,1796.8,1.9087]
[1745732794891,4.32058,1796.9,1796.8,1.9087]
[1745732796000,3.2078,1796.9,1796.8,1.9087]
[1745732796392,3.2078,1796.9,1796.8,3.795]
[1745732796587,3.2078,1796.9,1796.8,4.90784]
[1745732796793,3.2078,1797.1,1796.9,1.11273]
[1745732797100,3.2078,1797.1,1797.0,1.9503]
[1745732797990,4.32036,1797.3,1797.1,1.11263]
[1745732798192,4.32036,1797.3,1797.2,1.8376]
[1745732798600,4.32033,1797.3,1797.2,1.8376]
[1745732800003,6.12623,1797.3,1797.2,1.8376]
[1745732800805,1.11265,1797.1,1797.0,1.8393]
[1745732801103,1.11265,1797.1,1797.0,3.782]
[1745732801703,4.80114,1797.2,1797.0,3.782]
[1745732801901,4.80114,1797.2,1797.1,1.9427]
[1745732803606,1.11264,1797.2,1797.1,3.9343]
[1745732803901,4.32038,1797.3,1797.1,5.04695]
[1745732804104,4.32038,1797.3,1797.2,1.8585]
[1745732805104,6.14068,1797.3,1797.2,1.8585]
[1745732806605,4.32038,1797.3,1797.2,1.8585]
[1745732807108,4.32038,1797.3,1797.2,3.7509]
[1745732808803,6.25248,1797.3,1797.2,3.7509]
[1745732809003,1.11265,1797.1,1797.0,1.8393]
[1745732809409,3.04474,1797.2,1797.0,1.8393]
[1745732809606,3.04474,1797.2,1797.0,2.95202]
[1745732810702,1.9321,1797.2,1797.1,1.8274]
[1745732811004,4.32037,1797.3,1797.1,2.94003]
[1745732811198,4.32037,1797.3,1797.2,1.8785]
[1745732811399,4.32037,1797.3,1797.2,3.7059]
[1745732813702,3.2078,1797.3,1797.0,1.8393]
[1745732813907,1.11265,1797.1,1797.0,1.8393]
[1745732814406,1.11264,1797.2,1797.1,1.11265]
[1745732814598,3.2078,1797.3,1797.0,1.8393]
[1745732814795,1.11265,1797.1,1797.0,2.95199]
[1745732817009,1.11262,1797.2,1797.1,1.11265]
[1745732817306,1.11262,1797.2,1797.0,2.95197]
[1745732817496,1.11262,1797.2,1797.1,1.11265]
[1745732818101,9.84994792,1797.3,1797.2,1.11259]
[1745732818806,8.73740792,1797.3,1797.1,1.11264]
[1745732819112,4.32036,1797.3,1797.1,1.11264]
[1745732819305,4.32036,1797.3,1797.2,3.03669]
[1745732821810,1.11256,1797.3,1797.2,1.9241]
[1745732822002,4.32036,1797.3,1797.2,1.9241]
[1745732822402,1.11265,1797.1,1797.0,1.8393]
[1745732823315,1.11265,1797.1,1797.0,2.95202]
[1745732823615,1.11264,1797.2,1797.0,2.95202]
[1745732823806,5.1725,1797.3,1797.0,2.95202]
[1745732823807,1.11265,1797.1,1797.0,2.95202]
[1745732824009,4.32034,1797.3,1797.0,1.8393]
[1745732824206,4.32034,1797.3,1797.0,5.0471]
[1745732824514,3.2078,1797.3,1797.2,1.11259]
[1745732824812,4.32033,1797.3,1797.2,1.11259]
[1745732825313,3.2078,1797.3,1797.2,1.11259]
[1745732825613,5.52960792,1797.4,1797.3,1.11253]
[1745732825811,5.52960792,1797.4,1797.3,4.85953]
[1745732830017,3.2078,1797.7,1797.6,1.11234]
[1745732831106,3.2078,1797.7,1797.6,3.07834]
[1745732831306,3.2078,1797.7,1797.6,1.966]
[1745732831613,5.52960792,1797.8,1797.6,1.966]
[1745732831815,5.52960792,1797.8,1797.7,3.02248]
[1745732834019,3.2078,1797.9,1797.7,3.02248]
[1745732834219,3.2078,1797.9,1797.8,3.05442]
[1745732835612,3.2078,1797.9,1797.8,1.9422]
[1745732836116,3.2078,1797.9,1797.8,3.05442]
[1745732837119,10.40587792,1798.1,1797.8,3.05442]
[1745732837317,13.61367792,1798.1,1797.9,4.87274]
[1745732837517,15.51967792,1798.1,1798.0,1.8375]
[1745732839622,10.58940792,1798.1,1798.0,2.9496]
[1745732839822,5.52960792,1798.1,1798.0,2.9496]
[1745732844023,5.52960792,1798.1,1798.0,6.7556]
[1745732844231,5.52960792,1798.1,1798.0,9.9634]
[1745732845329,6.83399,1798.4,1798.1,1.11204]
[1745732845529,1.9486,1798.3,1798.1,4.88114]
[1745732845723,1.9486,1798.3,1798.2,1.8184]
[1745732846030,3.7735,1798.4,1798.2,1.8184]
[1745732846219,4.88536,1798.4,1798.2,4.88083]
[1745732846416,4.88535,1798.4,1798.2,4.88083]
[1745732846618,3.7735,1798.4,1798.3,1.927]
[1745732847132,3.7735,1798.4,1798.3,3.03891]
[1745732847533,1.9607,1798.4,1798.3,3.03891]
[1745732848033,10.55020792,1798.5,1798.4,1.11185]
[1745732848233,10.55020792,1798.5,1798.4,3.03885]
[1745732848528,10.55020792,1798.5,1798.4,1.927]
[1745732848725,13.55759792,1798.5,1798.4,1.927]
[1745732848932,12.44580792,1798.5,1798.4,3.03885]
[1745732849330,13.55759792,1798.5,1798.4,3.03885]
[1745732849631,13.55759792,1798.5,1798.4,1.927]
[1745732849931,8.73740792,1798.5,1798.4,3.03885]
[1745732850126,13.62129792,1798.5,1798.4,3.03885]
[1745732850320,8.09169,1798.5,1798.4,3.03885]
[1745732850629,8.09169,1798.5,1798.4,1.927]
[1745732851133,8.09169,1798.5,1798.4,3.03885]
[1745732851330,6.9799,1798.5,1798.4,3.03885]
[1745732851533,8.09169,1798.5,1798.4,1.927]
[1745732851835,6.9799,1798.5,1798.4,3.03885]
[1745732852128,3.7721,1798.5,1798.4,3.03885]
[1745732852325,4.88389,1798.5,1798.4,3.03885]
[1745732852532,3.7721,1798.5,1798.4,3.03885]
[1745732852831,1.9143,1798.5,1798.4,3.03885]
[1745732853223,4.77756,1798.6,1798.4,3.03885]
[1745732853425,6.73256,1798.6,1798.5,1.9633]
[1745732854934,13.40015,1798.6,1798.2,1.11194]
[1745732855232,1.11191,1798.3,1798.2,3.07527]
[1745732855532,1.11191,1798.3,1798.1,1.11201]
[1745732855730,4.97964,1798.3,1798.1,3.02139]
[1745732855929,3.07437,1798.2,1798.1,1.9094]
[1745732856126,3.9347,1798.2,1798.1,3.02144]
[1745732856533,3.2078,1798.4,1798.2,1.11194]
[1745732856725,1.11191,1798.3,1798.2,3.02134]
[1745732856924,3.08421,1798.3,1798.2,1.9094]
[1745732857441,3.08421,1798.3,1798.2,3.02137]
[1745732857832,3.08421,1798.3,1798.2,1.9094]
[1745732858136,1.11204,1798.1,1798.0,3.806]
[1745732858635,1.11204,1798.1,1797.9,1.9094]
[1745732858636,1.1121,1798.0,1797.9,1.9094]
[1745732858827,6.2231,1798.0,1797.9,1.9094]
[1745732859132,1.9418,1798.1,1798.0,1.1121]
[1745732859826,1.1121,1798.0,1797.9,1.9094]
[1745732860233,1.1121,1798.0,1797.9,3.02156]
[1745732860422,3.05388,1798.1,1797.9,3.02156]
[1745732860935,3.05388,1798.1,1798.0,1.7936]
[1745732861233,3.05388,1798.1,1798.0,2.9057]
[1745732861833,7.0019,1798.2,1798.1,1.11204]
[1745732862036,7.0019,1798.2,1798.1,3.04134]
[1745732862731,5.111,1798.2,1798.1,3.04134]
[1745732863738,6.22297,1798.2,1798.1,3.04134]
[1745732864038,5.111,1798.2,1798.1,3.04134]
[1745732864741,3.2078,1798.2,1798.1,3.04134]
[1745732866640,4.31965,1798.4,1798.2,1.11195]
[1745732866836,4.31965,1798.4,1798.3,1.909]
[1745732867036,6.18935,1798.4,1798.3,1.909]
[1745732871149,6.18935,1798.4,1798.3,3.02091]
[1745732871336,6.18935,1798.4,1798.3,1.909]
[1745732871839,6.18935,1798.4,1798.3,3.02091]
[1745732872039,6.18935,1798.4,1798.3,1.909]
[1745732872245,9.86871123,1798.4,1798.3,1.909]
[1745732872842,6.88716123,1798.4,1798.3,3.02091]
[1745732877141,7.99901123,1798.4,1798.3,1.909]
[1745732877536,9.88901123,1798.4,1798.3,1.909]
[1745732877936,11.69281123,1798.4,1798.3,1.909]
[1745732878242,11.69281123,1798.4,1798.3,3.02091]
[1745732878642,9.80281123,1798.4,1798.3,3.02091]
[1745732879048,6.88716123,1798.4,1798.3,3.02091]
[1745732879841,5.52960792,1798.4,1798.3,3.02091]
[1745732881849,6.64149792,1798.4,1798.2,1.11193]
[1745732882050,5.52960792,1798.4,1798.3,2.99411]
[1745732883049,5.52960792,1798.4,1798.3,1.8822]
[1745732883250,5.52960792,1798.4,1798.3,2.99411]
[1745732884953,6.64145792,1798.4,1798.3,2.99411]
[1745732885153,5.52960792,1798.4,1798.3,2.99411]
[1745732886757,10.32461021,1798.5,1798.3,2.99411]
[1745732886951,10.32461021,1798.5,1798.4,1.9313]
[1745732887153,8.48841021,1798.5,1798.4,1.9313]
[1745732888966,8.48841021,1798.5,1798.4,3.04315]
[1745732889265,7.37658021,1798.5,1798.4,3.04315]
[1745732889461,8.48837021,1798.5,1798.4,1.9313]
[1745732889660,11.69617021,1798.5,1798.4,1.9313]
[1745732890570,6.16839,1798.5,1798.4,1.9313]
[1745732890872,1.11191,1798.3,1798.1,1.11198]
[1745732891068,1.11191,1798.3,1798.2,1.9115]
[1745732891364,4.31971,1798.3,1798.2,1.9115]
[1745732891570,4.31971,1798.3,1798.2,3.02347]
[1745732891773,4.31971,1798.3,1798.2,1.9115]
[1745732891971,3.2078,1798.3,1798.2,3.02347]
[1745732892570,3.2078,1798.3,1798.2,1.9115]
[1745732892571,4.31971,1798.3,1798.2,1.9115]
[1745732892870,3.2078,1798.3,1798.2,3.02347]
[1745732893270,3.2078,1798.5,1798.2,1.9115]
[1745732893475,1.11184,1798.5,1798.3,6.67658]
[1745732893675,2.93824,1798.5,1798.4,1.8926]
[1745732895082,12.16252529,1798.5,1798.4,1.8926]
[1745732896176,1.1119,1798.4,1798.2,1.11193]
[1745732896474,4.31971,1798.3,1798.2,2.94253]
[1745732896675,1.11191,1798.3,1798.2,2.94253]
[1745732896868,1.11191,1798.3,1798.1,1.11199]
[1745732897068,1.11191,1798.3,1798.2,2.94257]
[1745732897371,13.54390529,1798.5,1798.3,1.11191]
[1745732897575,10.33610529,1798.5,1798.4,1.8306]
[1745732897969,12.22780529,1798.5,1798.4,1.8306]
[1745732898171,11.11598529,1798.5,1798.0,1.11207]
[1745732898367,1.11197,1798.3,1798.1,1.11199]
[1745732898581,1.11197,1798.3,1798.2,1.8271]
[1745732898870,9.79798,1798.4,1798.2,6.82584]
[1745732899066,4.31968,1798.4,1798.2,5.7139]
[1745732899263,4.31968,1798.4,1798.3,1.8271]
[1745732899878,1.11188,1798.4,1798.3,2.93901]
[1745732900077,10.33611529,1798.5,1798.3,2.93901]
[1745732900281,10.33611529,1798.5,1798.4,1.8271]
[1745732901480,9.22428529,1798.5,1798.4,2.93895]
[1745732903985,7.39703642,1798.5,1798.4,2.93895]
[1745732907379,8.50876642,1798.6,1798.4,2.93895]
[1745732907684,8.50876642,1798.6,1798.5,3.8215]
[1745732907872,7.39703642,1798.6,1798.5,6.85359]
[1745732908069,8.50876642,1798.6,1798.5,6.85359]
[1745732908682,7.39703642,1798.6,1798.5,6.85359]
[1745732909784,7.39703642,1798.6,1798.5,10.06139]
[1745732909984,7.39703642,1798.6,1798.5,5.7418]
[1745732910183,7.39703642,1798.6,1798.5,6.85359]
[1745732910788,8.50876642,1798.6,1798.5,5.7418]
[1745732910983,7.39703642,1798.6,1798.5,5.7418]
[1745732911187,6.6620715,1798.6,1798.5,5.7418]
[1745732914084,8.50876642,1798.6,1798.5,5.7418]
[1745732914282,7.39703642,1798.6,1798.5,6.85359]
[1745732916390,8.50876642,1798.6,1798.5,6.85359]
[1745732916788,7.39703642,1798.6,1798.5,6.85359]
[1745732918289,8.50874642,1798.7,1798.5,6.85359]
[1745732918482,8.50874642,1798.7,1798.6,1.9394]
[1745732919190,8.50874642,1798.7,1798.6,3.05113]
[1745732919492,8.50874642,1798.7,1798.6,1.9394]
[1745732925495,8.50874642,1798.7,1798.6,3.05113]
[1745732928503,8.50869642,1798.7,1798.6,3.05113]
[1745732928699,7.39703642,1798.7,1798.6,3.05113]
[1745732929001,8.50869642,1798.7,1798.6,3.05113]
[1745732930003,7.39703642,1798.7,1798.6,3.05113]
[1745732930206,8.50869642,1798.7,1798.6,3.05113]
[1745732930903,8.50869642,1798.7,1798.6,1.9394]
[1745732931104,6.65328455,1798.7,1798.6,1.9394]
[1745732932606,6.65328455,1798.7,1798.6,3.05113]
[1745732933103,5.54162455,1798.7,1798.6,3.05113]
[1745732937908,6.65328455,1798.7,1798.6,1.9394]
[1745732938110,12.40658455,1798.7,1798.6,1.9394]
[1745732938409,10.55931542,1798.7,1798.6,1.9394]
[1745732939805,1.11188,1798.4,1798.2,3.797]
[1745732940005,1.11188,1798.4,1798.2,4.90893]
[1745732940205,1.11185,1798.4,1798.3,1.11191]
[1745732940410,1.11185,1798.4,1798.2,4.90893]
[1745732940711,3.2078,1798.6,1798.2,3.797]
[1745732941010,6.11588,1798.6,1798.4,1.11185]
[1745732941211,6.11588,1798.6,1798.5,1.9446]
[1745732942911,3.2078,1798.6,1798.5,3.05639]
[1745732943515,0.0088,1798.7,1798.6,1.11173]
[1745732943716,1.12046,1798.7,1798.6,5.8677]
[1745732944011,0.0088,1798.7,1798.6,6.97943]
[1745732945014,7.40583642,1798.7,1798.6,6.97943]
[1745732948115,0.0088,1798.7,1798.6,6.97943]
[1745732948822,1.12046,1798.7,1798.6,5.8677]
[1745732949412,1.11185,1798.4,1798.3,3.2078]
[1745732949618,3.2078,1798.6,1798.4,1.8349]
[1745732950116,4.31956,1798.6,1798.4,2.94672]
[1745732950316,4.31956,1798.6,1798.5,1.9235]
[1745732951618,6.28046,1798.6,1798.5,1.9235]
[1745732952414,13.67749642,1798.6,1798.5,1.9235]
[1745732953519,12.55143642,1798.6,1798.5,1.9235]
[1745732953913,9.34363642,1798.6,1798.5,3.03529]
[1745732954419,10.45536642,1798.6,1798.5,1.9235]
[1745732954623,9.34363642,1798.6,1798.5,3.03529]
[1745732955616,7.39703642,1798.6,1798.5,3.03529]
[1745732963628,8.50876642,1798.6,1798.5,1.9235]
[1745732965727,10.45206642,1798.6,1798.5,1.9235]
[1745732967927,10.45206642,1798.6,1798.5,3.03529]
[1745732968131,7.39703642,1798.6,1798.5,3.03529]
[1745732968338,7.39703642,1798.6,1798.5,4.97769]
[1745732975040,5.54574004,1798.6,1798.5,4.97769]
[1745732975936,5.54574004,1798.6,1798.5,8.77169]
[1745732976341,7.40583642,1798.7,1798.6,1.11173]
[1745732976638,2.49150244,1798.8,1798.7,1.11166]